{"text_format":"3","workbook":"xlsx","n_sheets":3,"sheets":["Studentliste","Klasseliste","Studentinformasjon"],"not_rendered":{"images":2,"defined_names":8},"read":"whole","date_system":"1900"}

{"sheet":"Studentliste","index":0,"n_rows":8,"n_cols":13,"rows_kept":8,"merged":[[1,2,2,3],[1,4,1,11],[2,4,2,11],[6,12,8,16]]}
[]
[null,null,"Studentliste",null,"GÅ TIL KLASSELISTE"]
[{"$nulls":4},"GÅ TIL STUDENTINFORMASJON"]
[null,null,"STUDENTENS NAVN","E-POST","PRIVATTELEFON","MOBILTELEFON","Fødselsdato","NØDKONTAKT","NØDTELEFON","LEGE","TELEFON LEGE","  "]
[null,null,"Navn 1","E-postadresse","Telefon, privat","Mobiltelefon","Dato","Kontakt 1","Nødtelefon","Lege 1","Telefon lege"]
[null,null,"Navn 2","E-postadresse","Telefon, privat","Mobiltelefon","Dato","Kontakt 2","Nødtelefon","Lege 2","Telefon lege"]
[null,null,"Navn 3","E-postadresse","Telefon, privat","Mobiltelefon","Dato","Kontakt 3","Nødtelefon","Lege 3","Telefon lege",null,"Tips: Hvis du vil legge til flere studenter, trykker på TAB-tasten i den siste cellen i tabellen."]
[null,null,"Navn 4","E-postadresse","Telefon, privat","Mobiltelefon","Dato","Kontakt 4","Nødtelefon","Lege 4","Telefon lege"]

{"sheet":"Klasseliste","index":1,"n_rows":12,"n_cols":7,"rows_kept":12,"merged":[[1,2,2,2],[1,3,2,3],[1,4,1,6],[2,4,2,6]]}
[]
[null,null,"Klasseliste","Institutt for grafisk design","GÅ TIL STUDENTLISTE"]
[{"$nulls":4},"GÅ TIL STUDENTINFORMASJON"]
[null,null,"KURS","Kursnavn","STARTDATO","Dato"]
[null,null,"INSTRUKTØR","Instruktør 1","SLUTTDATO","Dato"]
[null,null,"STUDENTER REGISTRERT",{"$f":"COUNTA(Klasseliste[STUDENTENS NAVN])","v":4}]
[]
[null,null,"STUDENTENS NAVN","E-POST","PRIVATTELEFON","MOBILTELEFON","  "]
[null,null,"Navn 1",{"$f":"IFERROR(VLOOKUP(Klasseliste[[#This Row],[STUDENTENS NAVN]],Elever[],2),\"\")","v":"E-postadresse"},{"$f":"IFERROR(VLOOKUP(Klasseliste[[#This Row],[STUDENTENS NAVN]],Elever[],3),\"\")","v":"Telefon, privat"},{"$f":"IFERROR(VLOOKUP(Klasseliste[[#This Row],[STUDENTENS NAVN]],Elever[],4),\"\")","v":"Mobiltelefon"}]
[null,null,"Navn 2",{"$f":"IFERROR(VLOOKUP(Klasseliste[[#This Row],[STUDENTENS NAVN]],Elever[],2),\"\")","v":"E-postadresse"},{"$f":"IFERROR(VLOOKUP(Klasseliste[[#This Row],[STUDENTENS NAVN]],Elever[],3),\"\")","v":"Telefon, privat"},{"$f":"IFERROR(VLOOKUP(Klasseliste[[#This Row],[STUDENTENS NAVN]],Elever[],4),\"\")","v":"Mobiltelefon"}]
[null,null,"Navn 3",{"$f":"IFERROR(VLOOKUP(Klasseliste[[#This Row],[STUDENTENS NAVN]],Elever[],2),\"\")","v":"E-postadresse"},{"$f":"IFERROR(VLOOKUP(Klasseliste[[#This Row],[STUDENTENS NAVN]],Elever[],3),\"\")","v":"Telefon, privat"},{"$f":"IFERROR(VLOOKUP(Klasseliste[[#This Row],[STUDENTENS NAVN]],Elever[],4),\"\")","v":"Mobiltelefon"}]
[null,null,"Navn 4",{"$f":"IFERROR(VLOOKUP(Klasseliste[[#This Row],[STUDENTENS NAVN]],Elever[],2),\"\")","v":"E-postadresse"},{"$f":"IFERROR(VLOOKUP(Klasseliste[[#This Row],[STUDENTENS NAVN]],Elever[],3),\"\")","v":"Telefon, privat"},{"$f":"IFERROR(VLOOKUP(Klasseliste[[#This Row],[STUDENTENS NAVN]],Elever[],4),\"\")","v":"Mobiltelefon"}]

{"sheet":"Studentinformasjon","index":2,"n_rows":13,"n_cols":4,"rows_kept":13,"merged":[[1,2,2,2],[1,3,1,4],[2,3,2,4],[3,2,3,3]]}
[]
[null,null,"Studentinformasjon","GÅ TIL STUDENTLISTE"]
[{"$nulls":3},"GÅ TIL KLASSELISTE"]
[null,null,"TIPS: VELG EN STUDENT FRA RULLEGARDINLISTEN I CELLE D5 FOR Å OPPDATERE STUDENTINFORMASJONEN"]
[null,null,"STUDENTENS NAVN","Navn 1"]
[null,null,"E-POST",{"$f":"IFERROR(VLOOKUP(Elevnavn,Elever[],2,FALSE),\"\")","v":"E-postadresse"}]
[null,null,"PRIVATTELEFON",{"$f":"IFERROR(VLOOKUP(Elevnavn,Elever[],3,FALSE),\"\")","v":"Telefon, privat"}]
[null,null,"MOBILTELEFON",{"$f":"IFERROR(VLOOKUP(Elevnavn,Elever[],4,FALSE),\"\")","v":"Mobiltelefon"}]
[null,null,"Fødselsdato",{"$f":"IFERROR(VLOOKUP(Elevnavn,Elever[],5,FALSE),\"\")","v":"Dato"}]
[null,null,"NØDKONTAKT",{"$f":"IFERROR(VLOOKUP(Elevnavn,Elever[],6,FALSE),\"\")","v":"Kontakt 1"}]
[null,null,"NØDTELEFON",{"$f":"IFERROR(VLOOKUP(Elevnavn,Elever[],7,FALSE),\"\")","v":"Nødtelefon"}]
[null,null,"LEGE",{"$f":"IFERROR(VLOOKUP(Elevnavn,Elever[],8,FALSE),\"\")","v":"Lege 1"}]
[null,null,"TELEFON LEGE",{"$f":"IFERROR(VLOOKUP(Elevnavn,Elever[],9,FALSE),\"\")","v":"Telefon lege"}]